fUST/lending_fUST_20240726
["ID","MTS","AMOUNT","RATE_DAILY","PERIOD"]
[333233455,1721957440654,-500.0,0.00013698,2]
[333233457,1721957440664,-500.0,0.00013698,2]
[333233459,1721957440673,-500.0,0.00013698,2]
[333233461,1721957440683,-500.0,0.00013698,2]
[333233463,1721957440694,-228.8614272,0.00013698,2]
[333233465,1721957440704,-662.29,0.00013698,2]
[333233467,1721957440715,-500.0,0.00013698,2]
[333233470,1721957440726,-500.0,0.00013698,2]
[333233472,1721957440737,-592.80057666,0.00013698,2]
[333233474,1721957440747,-500.0,0.00013698,2]
[333233476,1721957440757,-868.83,0.00013698,2]
[333233478,1721957440766,-500.0,0.00013698,2]
[333233480,1721957440775,-500.0,0.00013698,2]
[333233482,1721957440784,-500.0,0.00013698,2]
[333233484,1721957440793,-500.0,0.00013698,2]
[333233486,1721957440804,-500.0,0.00013698,2]
[333233488,1721957440818,-500.0,0.00013698,2]
[333233490,1721957440827,-500.0,0.00013698,2]
[333233492,1721957440838,-500.0,0.00013698,2]
[333233494,1721957440848,-500.0,0.00013698,2]
[333233496,1721957440857,-500.0,0.00013698,2]
[333233498,1721957440867,-500.0,0.00013698,2]
[333233500,1721957440877,-500.0,0.00013698,2]
[333233502,1721957440886,-500.0,0.00013698,2]
[333233504,1721957440895,-500.0,0.00013698,2]
[333233506,1721957440905,-500.0,0.00013698,2]
[333233508,1721957440914,-500.0,0.00013698,2]
[333233510,1721957440923,-500.0,0.00013698,2]
[333233512,1721957440933,-500.0,0.00013698,2]
[333233514,1721957440943,-500.0,0.00013698,2]
[333233516,1721957440953,-500.0,0.00013698,2]
[333233518,1721957440962,-500.0,0.00013698,2]
[333233520,1721957440971,-500.0,0.00013698,2]
[333233522,1721957440980,-500.0,0.00013698,2]
[333233524,1721957440990,-500.0,0.00013698,2]
[333233526,1721957441001,-500.0,0.00013698,2]
[333233528,1721957441011,-500.0,0.00013698,2]
[333233530,1721957441020,-500.0,0.00013698,2]
[333233532,1721957441029,-500.0,0.00013698,2]
[333233534,1721957441039,-500.0,0.00013698,2]
[333233536,1721957441049,-500.0,0.00013698,2]
[333233538,1721957441061,-500.0,0.00013698,2]
[333233540,1721957441072,-500.0,0.00013698,2]
[333233542,1721957441082,-500.0,0.00013698,2]
[333233544,1721957441095,-500.0,0.00013698,2]
[333233546,1721957441105,-500.0,0.00013698,2]
[333233548,1721957441115,-500.0,0.00013698,2]
[333233550,1721957441125,-618.34450159,0.00013698,2]
[333233552,1721957441134,-500.0,0.00013698,2]
[333233554,1721957441143,-500.0,0.00013698,2]
[333233556,1721957441152,-500.0,0.00013698,2]
[333233558,1721957441162,-322.93479664,0.00013698,2]
[333233560,1721957441171,-234.00721895,0.00013698,2]
[333233562,1721957441181,-500.0,0.00013698,2]
[333233564,1721957441190,-500.0,0.00013698,2]
[333233566,1721957441202,-500.0,0.00013698,2]
[333233568,1721957441213,-525.41758468,0.00013698,2]
[333233570,1721957441224,-500.0,0.00013698,2]
[333233572,1721957441235,-500.0,0.00013698,2]
[333233575,1721957441248,-501.69911619,0.00013698,2]
[333233577,1721957441260,-500.0,0.00013698,2]
[333233579,1721957441271,-680.89,0.00013698,2]
[333233581,1721957441281,-500.0,0.00013698,2]
[333233583,1721957441290,-500.0,0.00013698,2]
[333233585,1721957441300,-500.0,0.00013698,2]
[333233587,1721957441312,-500.0,0.00013698,2]
[333233589,1721957441321,-503.40828399,0.00013698,2]
[333233591,1721957441330,-899.46,0.00013698,2]
[333233593,1721957441339,-575.96483489,0.00013698,2]
[333233595,1721957441348,-581.85,0.00013698,2]
[333233597,1721957441357,-616.96,0.00013698,2]
[333233599,1721957441366,-500.0,0.00013698,2]
[333233601,1721957441375,-537.5234073,0.00013698,2]
[333233603,1721957441386,-500.0,0.00013698,2]
[333233605,1721957441398,-500.0,0.00013698,2]
[333233607,1721957441409,-500.0,0.00013698,2]
[333233609,1721957441420,-500.0,0.00013698,2]
[333233611,1721957441431,-524.27020938,0.00013698,2]
[333233612,1721957441443,-500.0,0.00013698,2]
[333233613,1721957441452,-500.0,0.00013698,2]
[333233614,1721957441462,-784.56,0.00013698,2]
[333233615,1721957441471,-500.0,0.00013698,2]
[333233616,1721957441483,-500.0,0.00013698,2]
[333233617,1721957441494,-500.0,0.00013698,2]
[333233618,1721957441504,-500.0,0.00013698,2]
[333233619,1721957441514,-500.0,0.00013698,2]
[333233620,1721957441523,-500.0,0.00013698,2]
[333233621,1721957441532,-500.0,0.00013698,2]
[333233622,1721957441541,-500.0,0.00013698,2]
[333233623,1721957441551,-500.0,0.00013698,2]
[333233624,1721957441562,-500.0,0.00013698,2]
[333233625,1721957441571,-500.0,0.00013698,2]
[333233626,1721957441581,-1062.41,0.00013698,2]
[333233627,1721957441591,-1259.85,0.00013698,2]
[333233628,1721957441600,-802.23,0.00013698,2]
[333233629,1721957441610,-500.0,0.00013698,2]
[333233630,1721957441620,-500.0,0.00013698,2]
[333233631,1721957441628,-500.0,0.00013698,2]
[333233632,1721957441637,-500.0,0.00013698,2]
[333233633,1721957441646,-500.0,0.00013698,2]
[333233634,1721957441655,-223.39696642,0.00013698,2]
[333233635,1721957441665,-500.0,0.00013698,2]
[333233636,1721957441675,-500.0,0.00013698,2]
[333233637,1721957441684,-500.0,0.00013698,2]
[333233638,1721957441693,-500.0,0.00013698,2]
[333233639,1721957441703,-500.0,0.00013698,2]
[333233640,1721957441712,-500.0,0.00013698,2]
[333233641,1721957441722,-500.0,0.00013698,2]
[333233643,1721957441731,-500.0,0.00013698,2]
[333233644,1721957441740,-500.0,0.00013698,2]
[333233646,1721957441749,-501.87943531,0.00013698,2]
[333233647,1721957441759,-500.0,0.00013698,2]
[333233648,1721957441768,-500.0,0.00013698,2]
[333233649,1721957441777,-500.0,0.00013698,2]
[333233650,1721957441787,-500.0,0.00013698,2]
[333233651,1721957441796,-500.0,0.00013698,2]
[333233652,1721957441805,-500.0,0.00013698,2]
[333233653,1721957441815,-500.0,0.00013698,2]
[333233654,1721957441825,-500.0,0.00013698,2]
[333233655,1721957441834,-500.0,0.00013698,2]
[333233656,1721957441843,-906.0,0.00013698,2]
[333233657,1721957441853,-500.0,0.00013698,2]
[333233658,1721957441862,-500.0,0.00013698,2]
[333233659,1721957441872,-500.0,0.00013698,2]
[333233660,1721957441881,-500.0,0.00013698,2]
[333233661,1721957441890,-595.43,0.00013698,2]
[333233662,1721957441899,-500.0,0.00013698,2]
[333233663,1721957441908,-500.0,0.00013698,2]
[333233664,1721957441918,-500.0,0.00013698,2]
[333233665,1721957441927,-500.0,0.00013698,2]
[333233666,1721957441937,-651.51,0.00013698,2]
[333233667,1721957441946,-508.88063174,0.00013698,2]
[333233668,1721957441955,-220.88020243,0.00013698,2]
[333233669,1721957441964,-500.0,0.00013698,2]
[333233670,1721957441974,-690.09,0.00013698,2]
[333233671,1721957441983,-457.2424252,0.00013698,2]
[333233672,1721957441993,-873.16,0.00013698,2]
[333233673,1721957442003,-500.0,0.00013698,2]
[333233674,1721957442012,-301.2515248,0.00013698,2]
[333233675,1721957442022,-815.88,0.00013698,2]
[333233676,1721957442031,-500.0,0.00013698,2]
[333233677,1721957442040,-500.0,0.00013698,2]
[333233678,1721957442049,-500.0,0.00013698,2]
[333233679,1721957442059,-500.0,0.00013698,2]
[333233680,1721957442069,-500.0,0.00013698,2]
[333233681,1721957442078,-500.0,0.00013698,2]
[333233682,1721957442088,-500.0,0.00013698,2]
[333233683,1721957442100,-500.0,0.00013698,2]
[333233684,1721957442109,-500.0,0.00013698,2]
[333233685,1721957442119,-500.0,0.00013698,2]
[333233686,1721957442128,-555.51,0.00013698,2]
[333233687,1721957442138,-500.0,0.00013698,2]
[333233688,1721957442147,-500.0,0.00013698,2]
[333233689,1721957442157,-592.17,0.00013698,2]
[333233690,1721957442168,-500.0,0.00013698,2]
[333233691,1721957442177,-500.0,0.00013698,2]
[333233692,1721957442186,-500.0,0.00013698,2]
[333233693,1721957442196,-500.0,0.00013698,2]
[333233694,1721957442205,-523.21,0.00013698,2]
[333233695,1721957442214,-645.02,0.00013698,2]
[333233696,1721957442223,-500.0,0.00013698,2]
[333233697,1721957442233,-500.0,0.00013698,2]
[333233698,1721957442242,-500.0,0.00013698,2]
[333233699,1721957442251,-978.47,0.00013698,2]
[333233700,1721957442261,-500.0,0.00013698,2]
[333233701,1721957442270,-500.0,0.00013698,2]
[333233702,1721957442280,-500.0,0.00013698,2]
[333233703,1721957442289,-500.0,0.00013698,2]
[333233704,1721957442299,-500.0,0.00013698,2]
[333233705,1721957442309,-501.8751649,0.00013698,2]
[333233706,1721957442318,-500.0,0.00013698,2]
[333233707,1721957442327,-541.64,0.00013698,2]
[333233708,1721957442337,-732.38,0.00013698,2]
[333233709,1721957442346,-500.0,0.00013698,2]
[333233710,1721957442355,-500.0,0.00013698,2]
[333233711,1721957442365,-500.0,0.00013698,2]
[333233712,1721957442374,-815.04,0.00013698,2]
[333233713,1721957442384,-500.0,0.00013698,2]
[333233714,1721957442393,-500.0,0.00013698,2]
[333233715,1721957442402,-500.0,0.00013698,2]
[333233716,1721957442411,-865.57,0.00013698,2]
[333233717,1721957442421,-500.0,0.00013698,2]
[333233718,1721957442430,-677.96,0.00013698,2]
[333233719,1721957442439,-500.0,0.00013698,2]
[333233720,1721957442450,-787.36,0.00013698,2]
[333233721,1721957442459,-500.0,0.00013698,2]
[333233722,1721957442469,-500.0,0.00013698,2]
[333233723,1721957442479,-551.77,0.00013698,2]
[333233724,1721957442489,-500.0,0.00013698,2]
[333233725,1721957442499,-330.83450562,0.00013698,2]
[333233726,1721957442509,-500.0,0.00013698,2]
[333233727,1721957442519,-500.0,0.00013698,2]
[333233728,1721957442530,-500.0,0.00013698,2]
[333233729,1721957442540,-500.0,0.00013698,2]
[333233730,1721957442549,-500.0,0.00013698,2]
[333233731,1721957442560,-500.0,0.00013698,2]
[333233732,1721957442570,-500.0,0.00013698,2]
[333233733,1721957442580,-500.0,0.00013698,2]
[333233734,1721957442590,-1068.74,0.00013698,2]
[333233735,1721957442600,-500.0,0.00013698,2]
[333233736,1721957442610,-500.0,0.00013698,2]
[333233737,1721957442621,-500.0,0.00013698,2]
[333233738,1721957442630,-500.0,0.00013698,2]
[333233739,1721957442639,-500.0,0.00013698,2]
[333233740,1721957442650,-586.07,0.00013698,2]
[333233741,1721957442659,-500.0,0.00013698,2]
[333233742,1721957442669,-500.0,0.00013698,2]
[333233743,1721957442679,-500.0,0.00013698,2]
[333233744,1721957442689,-500.0,0.00013698,2]
[333233745,1721957442699,-500.0,0.00013698,2]
[333233746,1721957442710,-733.08,0.00013698,2]
[333233747,1721957442720,-264.24634082,0.00013698,2]
[333233748,1721957442732,-742.67,0.00013698,2]
[333233749,1721957442743,-500.0,0.00013698,2]
[333233750,1721957442754,-500.0,0.00013698,2]
[333233751,1721957442764,-500.0,0.00013698,2]
[333233752,1721957442775,-500.0,0.00013698,2]
[333233753,1721957442784,-500.0,0.00013698,2]
[333233754,1721957442795,-500.0,0.00013698,2]
[333233755,1721957442806,-500.0,0.00013698,2]
[333233756,1721957442817,-500.0,0.00013698,2]
[333233757,1721957442826,-516.27181188,0.00013698,2]
[333233758,1721957442835,-503.60989921,0.00013698,2]
[333233759,1721957442845,-500.0,0.00013698,2]
[333233760,1721957442854,-500.0,0.00013698,2]
[333233761,1721957442866,-500.0,0.00013698,2]
[333233763,1721957442876,-500.0,0.00013698,2]
[333233765,1721957442886,-502.87563975,0.00013698,2]
[333233768,1721957442898,-500.0,0.00013698,2]
[333233770,1721957442908,-500.0,0.00013698,2]
[333233772,1721957442917,-500.0,0.00013698,2]
[333233773,1721957442927,-677.22,0.00013698,2]
[333233774,1721957442936,-500.0,0.00013698,2]
[333233775,1721957442946,-398.55609103,0.00013698,2]
[333233776,1721957442955,-1748.29,0.00013698,2]
[333233777,1721957442965,-338.11479254,0.00013698,2]
[333233778,1721957443133,-500.0,0.00013698,2]
[333233779,1721957443143,-2308.83,0.00013698,2]
[333233780,1721957443154,-570.9,0.00013698,2]
[333233781,1721957443163,-620.01,0.00013698,2]
[333233782,1721957443174,-151.0,0.00013698,2]
[333233783,1721957443184,-745.39,0.00013698,2]
[333233784,1721957443194,-500.0,0.00013698,2]
[333233785,1721957443204,-725.6,0.00013698,2]
[333233786,1721957443213,-1409.2,0.00013698,2]
[333233787,1721957443223,-500.0,0.00013698,2]
[333233788,1721957443233,-500.0,0.00013698,2]
[333233789,1721957443243,-500.0,0.00013698,2]
[333233790,1721957443252,-550.33,0.00013698,2]
[333233791,1721957443262,-500.0,0.00013698,2]
[333233793,1721957443271,-751.43,0.00013698,2]
[333233795,1721957443281,-500.0,0.00013698,2]
[333233797,1721957443291,-500.78773657,0.00013698,2]
[333233799,1721957443301,-500.0,0.00013698,2]
[333233801,1721957443312,-1405.18,0.00013698,2]
[333233803,1721957443321,-1405.18,0.00013698,2]
[333233805,1721957443331,-1405.18,0.00013698,2]
[333233807,1721957443341,-1405.18,0.00013698,2]
[333233809,1721957443351,-1405.18,0.00013698,2]
[333233811,1721957443361,-1405.18,0.00013698,2]
[333233813,1721957443371,-559.45,0.00013698,2]
[333233815,1721957443381,-500.0,0.00013698,2]
[333233817,1721957443390,-500.0,0.00013698,2]
[333233819,1721957443400,-500.0,0.00013698,2]
[333233821,1721957443410,-1323.56,0.00013698,2]
[333233822,1721957443420,-676.11,0.00013698,2]
[333233824,1721957443430,-500.0,0.00013698,2]
[333233826,1721957443440,-500.0,0.00013698,2]
[333233827,1721957443450,-500.0,0.00013698,2]
[333233829,1721957443460,-500.0,0.00013698,2]
[333233830,1721957443469,-608.314683,0.00013698,2]
[333233831,1721957443478,-500.0,0.00013698,2]
[333233832,1721957443488,-608.314683,0.00013698,2]
[333233833,1721957443498,-500.0,0.00013698,2]
[333233834,1721957443507,-500.0,0.00013698,2]
[333233835,1721957443518,-1215.34,0.00013698,2]
[333233836,1721957443528,-1126.52,0.00013698,2]
[333233837,1721957443538,-500.0,0.00013698,2]
[333233838,1721957443547,-500.0,0.00013698,2]
[333233839,1721957443557,-151.0,0.00013698,2]
[333233840,1721957443571,-658.25,0.00013698,2]
[333233841,1721957443580,-1070.87,0.00013698,2]
[333233842,1721957443590,-500.0,0.00013698,2]
[333233844,1721957443601,-500.0,0.00013698,2]
[333233845,1721957443611,-500.0,0.00013698,2]
[333233847,1721957443621,-500.0,0.00013698,2]
[333233849,1721957443631,-500.0,0.00013698,2]
[333233851,1721957443640,-1228.86,0.00013698,2]
[333233853,1721957443650,-1894.88,0.00013698,2]
[333233855,1721957443660,-500.0,0.00013698,2]
[333233856,1721957443669,-500.0,0.00013698,2]
[333233858,1721957443678,-500.0,0.00013698,2]
[333233859,1721957443687,-500.0,0.00013698,2]
[333233860,1721957443697,-500.0,0.00013698,2]
[333233861,1721957443708,-632.53,0.00013698,2]
[333233862,1721957443717,-500.0,0.00013698,2]
[333233863,1721957443728,-500.0,0.00013698,2]
[333233864,1721957443738,-500.0,0.00013698,2]
[333233865,1721957443748,-151.0,0.00013698,2]
[333233866,1721957443757,-500.0,0.00013698,2]
[333233867,1721957443768,-285.072244,0.00013698,2]
[333233868,1721957443778,-500.0,0.00013698,2]
[333233869,1721957443788,-500.0,0.00013698,2]
[333233870,1721957443797,-7426.0,0.00013698,2]
[333233871,1721957443809,-500.0,0.00013698,2]
[333233872,1721957443819,-1144.06,0.00013698,2]
[333233873,1721957443829,-358.23991,0.00013698,2]
[333233874,1721957443838,-151.0,0.00013698,2]
[333233875,1721957443849,-500.0,0.00013698,2]
[333233877,1721957443859,-1018.34,0.00013698,2]
[333233880,1721957443872,-500.0,0.00013698,2]
[333233882,1721957443882,-500.0,0.00013698,2]
[333233884,1721957443892,-500.0,0.00013698,2]
[333233886,1721957443903,-573.83,0.00013698,2]
[333233888,1721957443913,-3111.3,0.00013698,2]
[333233890,1721957443925,-804.64,0.00013698,2]
[333233892,1721957443937,-500.0,0.00013698,2]
[333233893,1721957443946,-500.0,0.00013698,2]
[333233895,1721957443956,-500.0,0.00013698,2]
[333233896,1721957443965,-3803.43880522,0.00013698,2]
[333233897,1721957443993,-2243.99119478,0.00013698,2]
[333233898,1721957444003,-500.0,0.00013698,2]
[333233899,1721957444012,-500.0,0.00013698,2]
[333233900,1721957444022,-739.96,0.00013698,2]
[333233901,1721957444032,-1681.39,0.00013698,2]
[333233902,1721957444042,-500.0,0.00013698,2]
[333233903,1721957444052,-500.0,0.00013698,2]
[333233904,1721957444064,-500.0,0.00013698,2]
[333233905,1721957444073,-151.216843,0.00013698,2]
[333233906,1721957444083,-500.0,0.00013698,2]
[333233907,1721957444098,-560.34,0.00013698,2]
[333233908,1721957444107,-500.0,0.00013698,2]
[333233909,1721957444117,-1220.71,0.00013698,2]
[333233910,1721957444126,-1337.58,0.00013698,2]
[333233911,1721957444137,-690.45,0.00013698,2]
[333233912,1721957444146,-500.0,0.00013698,2]
[333233913,1721957444155,-500.0,0.00013698,2]
[333233914,1721957444167,-500.0,0.00013698,2]
[333233915,1721957444176,-500.0,0.00013698,2]
[333233916,1721957444186,-500.0,0.00013698,2]
[333233917,1721957444199,-500.0,0.00013698,2]
[333233918,1721957444210,-500.0,0.00013698,2]
[333233919,1721957444221,-1113.88,0.00013698,2]
[333233920,1721957444233,-2661.81102167,0.00013698,2]
[333233925,1721957446299,-2016.77305704,0.00013698,2]
[333233947,1721957838455,500.0,0.00025,120]
[333233948,1721957917611,288.0,0.00025,120]
[333233961,1721958632416,-273.37336231,9.51e-05,2]
[333233962,1721958632426,-188.34656337,9.999e-05,2]
[333233963,1721958632440,-154.85391621,9.999e-05,2]
[333233964,1721958632451,-154.76392115,9.999e-05,2]
[333233965,1721958632460,-154.86025721,9.999e-05,2]
[333233966,1721958632470,-154.82907859,9.999e-05,2]
[333233967,1721958632480,-185.20229799,9.999e-05,2]
[333233968,1721958632490,-1405.0259876,0.00012555,2]
[333233969,1721958632499,-200.0,0.00013425,2]
[333233970,1721958632510,-367.53930495,0.00013442,2]
[333233971,1721958632520,-300.0,0.00013487,2]
[333233972,1721958632530,-300.0,0.00013487,2]
[333233973,1721958632540,-5307.44717969,0.00013488,2]
[333233974,1721958632549,-1915.60390144,0.00013598,2]
[333233975,1721958632559,-151.0,0.00013698,2]
[333233976,1721958632569,-151.0,0.00013698,2]
[333233977,1721958632578,-216.77668918,0.00013698,2]
[333233978,1721958632588,-241.10538322,0.00013698,2]
[333233979,1721958632598,-500.6896418,0.00013698,2]
[333233980,1721958632608,-501.53877148,0.00013698,2]
[333233981,1721958632618,-13120.55347581,0.00013698,2]
[333233982,1721958632628,-510.1704397,0.00013698,2]
[333233983,1721958632638,-500.0,0.00013698,2]
[333233984,1721958632647,-507.20073888,0.00013698,2]
[333233985,1721958632656,-500.1630712,0.00013698,2]
[333233986,1721958632666,-251.41196041,0.00013698,2]
[333233987,1721958632675,-502.02913725,0.00013698,2]
[333233988,1721958632685,-500.0,0.00013698,2]
[333233989,1721958632695,-501.24098677,0.00013698,2]
[333233990,1721958632705,-528.44,0.00013698,2]
[333233991,1721958632714,-500.35852617,0.00013698,2]
[333233992,1721958632725,-413.61649496,0.00013698,2]
[333233993,1721958632734,-500.80364716,0.00013698,2]
[333233994,1721958632743,-162.195787,0.00013698,2]
[333233995,1721958632753,-151.0,0.00013698,2]
[333233996,1721958632763,-500.0,0.00013698,2]
[333233997,1721958632772,-500.0,0.00013698,2]
[333233998,1721958632782,-581.51,0.00013698,2]
[333233999,1721958632792,-736.12,0.00013698,2]
[333234000,1721958632802,-500.0,0.00013698,2]
[333234001,1721958632812,-466.60144875,0.00013698,2]
[333234002,1721958632821,-500.0,0.00013698,2]
[333234003,1721958632832,-500.0,0.00013698,2]
[333234004,1721958632842,-506.8555469,0.00013698,2]
[333234005,1721958632852,-500.0,0.00013698,2]
[333234006,1721958632863,-500.0,0.00013698,2]
[333234007,1721958632873,-500.0,0.00013698,2]
[333234008,1721958632883,-500.0,0.00013698,2]
[333234009,1721958632893,-500.0,0.00013698,2]
[333234010,1721958632909,-500.0,0.00013698,2]
[333234011,1721958632922,-622.8,0.00013698,2]
[333234012,1721958632937,-622.8,0.00013698,2]
[333234013,1721958632952,-622.8,0.00013698,2]
[333234014,1721958632967,-622.8,0.00013698,2]
[333234015,1721958632983,-622.8,0.00013698,2]
[333234016,1721958632995,-622.8,0.00013698,2]
[333234017,1721958633009,-622.8,0.00013698,2]
[333234018,1721958633022,-622.8,0.00013698,2]
[333234019,1721958633034,-622.8,0.00013698,2]
[333234020,1721958633047,-622.8,0.00013698,2]
[333234021,1721958633060,-622.8,0.00013698,2]
[333234022,1721958633074,-622.8,0.00013698,2]
[333234023,1721958633087,-622.8,0.00013698,2]
[333234024,1721958633100,-622.8,0.00013698,2]
[333234025,1721958633112,-622.8,0.00013698,2]
[333234026,1721958633125,-502.27309447,0.00013698,2]
[333234027,1721958633139,-622.8,0.00013698,2]
[333234028,1721958633151,-622.8,0.00013698,2]
[333234029,1721958633164,-500.0,0.00013698,2]
[333234030,1721958633177,-622.8,0.00013698,2]
[333234031,1721958633188,-622.8,0.00013698,2]
[333234032,1721958633202,-622.8,0.00013698,2]
[333234033,1721958633216,-622.8,0.00013698,2]
[333234034,1721958633234,-500.0,0.00013698,2]
[333234035,1721958633248,-622.8,0.00013698,2]
[333234036,1721958633261,-622.8,0.00013698,2]
[333234037,1721958633275,-623.02709537,0.00013698,2]
[333234038,1721958633286,-500.0,0.00013698,2]
[333234039,1721958633296,-500.0,0.00013698,2]
[333234040,1721958633310,-500.0,0.00013698,2]
[333234041,1721958633321,-503.37292245,0.00013698,2]
[333234042,1721958633335,-500.0,0.00013698,2]
[333234043,1721958633348,-500.0,0.00013698,2]
[333234044,1721958633361,-504.02849555,0.00013698,2]
[333234045,1721958633374,-1093.96,0.00013698,2]
[333234046,1721958633385,-500.0,0.00013698,2]
[333234047,1721958633398,-502.93711622,0.00013698,2]
[333234048,1721958633413,-844.38,0.00013698,2]
[333234049,1721958633426,-500.0,0.00013698,2]
[333234050,1721958633444,-500.0,0.00013698,2]
[333234051,1721958633457,-95.89238628,0.00013698,2]
[333234052,1721958633621,-404.10761372,0.00013698,2]
[333234053,1721958633633,-500.0,0.00013698,2]
[333234054,1721958633645,-104.50191884,0.00013698,2]
[333234063,1721958638755,-395.49808116,0.00013698,2]
[333234064,1721958638764,-500.0,0.00013698,2]
[333234066,1721958638774,-500.0,0.00013698,2]
[333234068,1721958638783,-500.0,0.00013698,2]
[333234070,1721958638793,-500.0,0.00013698,2]
[333234072,1721958638802,-500.0,0.00013698,2]
[333234074,1721958638812,-500.0,0.00013698,2]
[333234076,1721958638822,-500.0,0.00013698,2]
[333234078,1721958638831,-503.5144225,0.00013698,2]
[333234080,1721958638841,-500.0,0.00013698,2]
[333234082,1721958638850,-500.0,0.00013698,2]
[333234084,1721958638860,-500.0,0.00013698,2]
[333234086,1721958638871,-506.2216763,0.00013698,2]
[333234087,1721958638882,-500.0,0.00013698,2]
[333234088,1721958638894,-507.71923867,0.00013698,2]
[333234089,1721958638905,-503.98303314,0.00013698,2]
[333234090,1721958638918,-500.0,0.00013698,2]
[333234091,1721958638929,-500.0,0.00013698,2]
[333234092,1721958638939,-352.42687725,0.00013698,2]
[333234093,1721958638951,-500.0,0.00013698,2]
[333234094,1721958638962,-500.0,0.00013698,2]
[333234095,1721958638973,-500.0,0.00013698,2]
[333234096,1721958638984,-152.525496,0.00013698,2]
[333234097,1721958638993,-502.01320564,0.00013698,2]
[333234098,1721958639003,-506.32055841,0.00013698,2]
[333234099,1721958639013,-501.03262444,0.00013698,2]
[333234100,1721958639023,-421.37140345,0.00013698,2]
[333234101,1721958639033,-504.1804997,0.00013698,2]
[333234102,1721958639044,-500.0,0.00013698,2]
[333234103,1721958639056,-500.0,0.00013698,2]
[333234104,1721958639068,-935.67,0.00013698,2]
[333234105,1721958639080,-500.0,0.00013698,2]
[333234106,1721958639090,-500.0,0.00013698,2]
[333234107,1721958639100,-500.0,0.00013698,2]
[333234108,1721958639111,-508.27972194,0.00013698,2]
[333234109,1721958639122,-504.3749183,0.00013698,2]
[333234110,1721958639132,-500.0,0.00013698,2]
[333234111,1721958639141,-506.19503965,0.00013698,2]
[333234112,1721958639151,-939.22,0.00013698,2]
[333234113,1721958639161,-500.0,0.00013698,2]
[333234114,1721958639170,-500.0,0.00013698,2]
[333234115,1721958639179,-500.0,0.00013698,2]
[333234116,1721958639188,-503.8689295,0.00013698,2]
[333234117,1721958639198,-182.52050393,0.00013698,2]
[333234118,1721958639207,-608.31,0.00013698,2]
[333234119,1721958639216,-503.05368535,0.00013698,2]
[333234120,1721958639229,-673.18,0.00013698,2]
[333234121,1721958639241,-502.66710608,0.00013698,2]
[333234122,1721958639250,-512.09390165,0.00013698,2]
[333234123,1721958639259,-645.13496968,0.00013698,2]
[333234124,1721958639268,-719.24,0.00013698,2]
[333234125,1721958639278,-500.0,0.00013698,2]
[333234126,1721958639286,-502.52324586,0.00013698,2]
[333234127,1721958639295,-500.0,0.00013698,2]
[333234128,1721958639305,-503.70035885,0.00013698,2]
[333234129,1721958639314,-500.0,0.00013698,2]
[333234130,1721958639324,-151.0,0.00013698,2]
[333234131,1721958639333,-500.0,0.00013698,2]
[333234132,1721958639342,-503.44932209,0.00013698,2]